[Event "Ebbe Cup 48"]
[Site "Goteborgs Schackcentrum, Vegatan 20, Gothenburg, Sweden"]
[Date "2025.02.15"]
[Round "2.9"]
[White "Evertsson, David"]
[Black "Gallon, John"]
[Result "1-0"]
[TimeControl "90 minutes + 30 seconds per move from move one"]
[WhiteFideId "1777424"]
[BlackFideId "1783661"]
[WhiteElo "1710"]
[BlackElo "1651"]

1. e4 {[%clk 01:30:54]} {[%emt 00:00:02]} c6 {[%clk 01:30:49]} {[%emt
00:00:14]} 2. d4 {[%clk 01:31:18]} {[%emt 00:00:06]} d5 {[%clk 01:31:12]}
{[%emt 00:00:07]} 3. exd5 {[%clk 01:31:41]} {[%emt 00:00:07]} cxd5 {[%clk
01:31:32]} {[%emt 00:00:10]} 4. c4 {[%clk 01:32:05]} {[%emt 00:00:06]} Nf6
{[%clk 01:31:01]} {[%emt 00:01:01]} 5. Nc3 {[%clk 01:32:27]} {[%emt 00:00:08]}
Nc6 {[%clk 01:23:04]} {[%emt 00:08:26]} 6. Nf3 {[%clk 01:32:10]} {[%emt
00:00:47]} Bg4 {[%clk 01:22:11]} {[%emt 00:01:24]} 7. cxd5 {[%clk 01:32:08]}
{[%emt 00:00:32]} Nxd5 {[%clk 01:18:45]} {[%emt 00:03:57]} 8. Qb3 {[%clk
01:32:23]} {[%emt 00:00:14]} Bxf3 {[%clk 01:03:35]} {[%emt 00:15:40]} 9. gxf3
{[%clk 01:32:42]} {[%emt 00:00:11]} e6 {[%clk 01:01:32]} {[%emt 00:02:33]} 10.
Qxb7 {[%clk 01:31:00]} {[%emt 00:02:11]} Qc8 {[%clk 00:58:43]} {[%emt
00:03:19]} 11. Ba6 {[%clk 01:13:19]} {[%emt 00:18:12]} Nxd4 {[%clk 00:39:50]}
{[%emt 00:19:24]} 12. Qxc8+ {[%clk 01:11:01]} {[%emt 00:02:48]} Rxc8 {[%clk
00:40:01]} {[%emt 00:00:19]} 13. Bxc8 {[%clk 01:10:48]} {[%emt 00:00:43]} Nc2+
{[%clk 00:40:00]} {[%emt 00:00:31]} 14. Kd1 {[%clk 01:10:46]} {[%emt 00:00:30]}
Nxa1 {[%clk 00:40:14]} {[%emt 00:00:17]} 15. Nxd5 {[%clk 01:10:36]} {[%emt
00:00:40]} exd5 {[%clk 00:40:39]} {[%emt 00:00:05]} 16. b3 {[%clk 01:04:54]}
{[%emt 00:06:12]} Bb4 {[%clk 00:40:01]} {[%emt 00:01:08]} 17. Bb2 {[%clk
01:04:30]} {[%emt 00:00:54]} O-O {[%clk 00:40:11]} {[%emt 00:00:20]} 18. Ba6
{[%clk 01:01:55]} {[%emt 00:03:05]} Nxb3 {[%clk 00:40:23]} {[%emt 00:00:18]} 19.
axb3 {[%clk 01:02:15]} {[%emt 00:00:09]} Rb8 {[%clk 00:40:18]} {[%emt
00:00:35]} 20. Rg1 {[%clk 01:01:04]} {[%emt 00:01:42]} g6 {[%clk 00:40:32]}
{[%emt 00:00:16]} 21. Rg5 {[%clk 01:00:08]} {[%emt 00:01:25]} d4 {[%clk
00:39:13]} {[%emt 00:01:50]} 22. Bc4 {[%clk 01:00:00]} {[%emt 00:00:39]} Re8
{[%clk 00:39:22]} {[%emt 00:00:21]} 23. Bxd4 {[%clk 00:59:02]} {[%emt
00:01:27]} a5 {[%clk 00:39:07]} {[%emt 00:00:45]} 24. Be3 {[%clk 00:58:12]}
{[%emt 00:01:20]} Kf8 {[%clk 00:39:09]} {[%emt 00:00:28]} 25. Bc5+ {[%clk
00:58:11]} {[%emt 00:00:32]} Bxc5 {[%clk 00:39:09]} {[%emt 00:00:30]} 26. Rxc5
{[%clk 00:58:32]} {[%emt 00:00:08]} f5 {[%clk 00:38:35]} {[%emt 00:01:03]} 27.
Rxa5 {[%clk 00:58:39]} {[%emt 00:00:23]} Re7 {[%clk 00:38:23]} {[%emt
00:00:39]} 28. b4 {[%clk 00:53:15]} {[%emt 00:05:58]} Kg7 {[%clk 00:38:35]}
{[%emt 00:00:18]} 29. b5 {[%clk 00:52:36]} {[%emt 00:01:08]} Rd7+ {[%clk
00:38:32]} {[%emt 00:00:33]} 30. Kc2 {[%clk 00:52:49]} {[%emt 00:00:17]} Kf6
{[%clk 00:38:41]} {[%emt 00:00:21]} 31. b6 {[%clk 00:52:32]} {[%emt 00:00:48]}
Rb7 {[%clk 00:38:44]} {[%emt 00:00:27]} 32. Rb5 {[%clk 00:52:54]} {[%emt
00:00:09]} Kg5 {[%clk 00:39:03]} {[%emt 00:00:10]} 33. Bd5 {[%clk 00:53:07]}
{[%emt 00:00:16]} Rb8 {[%clk 00:39:24]} {[%emt 00:00:11]} 34. b7 {[%clk
00:53:31]} {[%emt 00:00:06]} Kf4 {[%clk 00:39:13]} {[%emt 00:00:40]} 35. Ra5
{[%clk 00:53:49]} {[%emt 00:00:12]} Ke5 {[%clk 00:39:24]} {[%emt 00:00:19]} 36.
Ra8 {[%clk 00:53:50]} {[%emt 00:00:29]} Kxd5 {[%clk 00:39:38]} {[%emt
00:00:16]} 37. Rxb8 {[%clk 00:54:13]} {[%emt 00:00:07]} Kc6 {[%clk 00:40:01]}
{[%emt 00:00:06]} 38. Rh8 {[%clk 00:54:30]} {[%emt 00:00:14]} Kxb7 {[%clk
00:40:25]} {[%emt 00:00:07]} 39. Rxh7+ {[%clk 00:54:55]} {[%emt 00:00:04]} Kc6
{[%clk 00:40:49]} {[%emt 00:00:06]} 40. Rh6 {[%clk 00:55:19]} {[%emt 00:00:06]}
Kd5 {[%clk 00:41:08]} {[%emt 00:00:10]} 41. Rxg6 {[%clk 00:55:38]} {[%emt
00:00:12]} f4 {[%clk 00:41:27]} {[%emt 00:00:10]} 42. Kd3 {[%clk 00:55:58]}
{[%emt 00:00:11]} Ke5 {[%clk 00:41:50]} {[%emt 00:00:08]} 43. h4 {[%clk
00:56:02]} {[%emt 00:00:25]} Kf5 {[%clk 00:42:15]} {[%emt 00:00:06]} 44. Rg1
{[%clk 00:56:21]} {[%emt 00:00:10]} Ke5 {[%clk 00:42:39]} {[%emt 00:00:06]} 45.
h5 {[%clk 00:56:46]} {[%emt 00:00:06]} Kd5 {[%clk 00:43:02]} {[%emt 00:00:07]}
46. h6 {[%clk 00:57:11]} {[%emt 00:00:04]} Ke5 {[%clk 00:43:29]} {[%emt
00:00:03]} 47. h7 {[%clk 00:57:37]} {[%emt 00:00:04]} Kd5 {[%clk 00:43:52]}
{[%emt 00:00:08]} 48. h8=Q {[%clk 00:57:47]} {[%emt 00:00:07]} Kc5 {[%clk
00:44:21]} 49. Rg5+ {[%clk 00:58:00]} {[%emt 00:00:30]} Kd6 {[%clk 00:44:45]}
{[%emt 00:00:07]} 50. Qe5+ {[%clk 00:58:21]} {[%emt 00:00:08]} Kc6 {[%clk
00:45:05]} {[%emt 00:00:09]} 51. Rg6+ {[%clk 00:58:45]} {[%emt 00:00:07]} Kd7
{[%clk 00:45:29]} {[%emt 00:00:06]} 52. Qg7+ {[%clk 00:59:05]} {[%emt
00:00:10]} Ke8 {[%clk 00:45:41]} {[%emt 00:00:17]} 53. Rh6 {[%clk 00:59:29]}
{[%emt 00:00:07]} Kd8 {[%clk 00:46:04]} {[%emt 00:00:07]} 54. Rh8# {[%clk
00:59:55]} {[%emt 00:00:03]} 1-0

[Event "Ebbe Cup 48"]
[Site "Goteborgs Schackcentrum, Vegatan 20, Gothenburg, Sweden"]
[Date "2025.02.15"]
[Round "2.10"]
[White "Hassinge, Ove"]
[Black "Dahlin, Emil"]
[Result "1-0"]
[TimeControl "90 minutes + 30 seconds per move from move one"]
[WhiteFideId "1774530"]
[BlackFideId "1771035"]
[WhiteElo "1655"]
[BlackElo "1698"]

1. e4 {[%clk 01:30:37]} {[%emt 00:00:22]} e5 {[%clk 01:30:56]} {[%emt
00:00:05]} 2. Nf3 {[%clk 01:30:41]} {[%emt 00:00:26]} Nc6 {[%clk 01:31:08]}
{[%emt 00:00:18]} 3. Bc4 {[%clk 01:30:56]} {[%emt 00:00:14]} Nf6 {[%clk
01:31:18]} {[%emt 00:00:20]} 4. Ng5 {[%clk 01:30:59]} {[%emt 00:00:27]} d5
{[%clk 01:31:38]} {[%emt 00:00:10]} 5. exd5 {[%clk 01:31:21]} {[%emt 00:00:08]}
Na5 {[%clk 01:31:57]} {[%emt 00:00:11]} 6. Bb5+ {[%clk 01:31:38]} {[%emt
00:00:12]} c6 {[%clk 01:32:15]} {[%emt 00:00:13]} 7. dxc6 {[%clk 01:32:00]}
{[%emt 00:00:08]} bxc6 {[%clk 01:32:36]} {[%emt 00:00:10]} 8. Bd3 {[%clk
01:32:23]} {[%emt 00:00:06]} h6 {[%clk 01:23:04]} {[%emt 00:10:03]} 9. Ne4
{[%clk 01:32:11]} {[%emt 00:00:41]} Nxe4 {[%clk 01:21:06]} {[%emt 00:02:28]} 10.
Bxe4 {[%clk 01:32:29]} {[%emt 00:00:12]} Be7 {[%clk 01:13:32]} {[%emt
00:08:04]} 11. O-O {[%clk 01:32:02]} {[%emt 00:00:57]} O-O {[%clk 01:12:54]}
{[%emt 00:01:08]} 12. c3 {[%clk 01:31:38]} {[%emt 00:00:52]} f5 {[%clk
01:10:09]} {[%emt 00:03:16]} 13. Bc2 {[%clk 01:30:59]} {[%emt 00:01:09]} g5
{[%clk 00:55:04]} {[%emt 00:15:36]} 14. b4 {[%clk 01:25:21]} {[%emt 00:06:08]}
Nb7 {[%clk 00:54:17]} {[%emt 00:01:17]} 15. Bb3+ {[%clk 01:21:11]} {[%emt
00:04:40]} Kg7 {[%clk 00:54:18]} {[%emt 00:00:28]} 16. Qe2 {[%clk 01:19:10]}
{[%emt 00:02:31]} Qd6 {[%clk 00:49:04]} {[%emt 00:05:43]} 17. Na3 {[%clk
01:16:57]} {[%emt 00:02:45]} Be6 {[%clk 00:44:57]} {[%emt 00:04:37]} 18. Nc4
{[%clk 01:13:14]} {[%emt 00:04:13]} Bxc4 {[%clk 00:45:07]} {[%emt 00:00:21]} 19.
Bxc4 {[%clk 01:13:37]} {[%emt 00:00:07]} g4 {[%clk 00:42:16]} {[%emt 00:03:21]}
20. d3 {[%clk 01:08:32]} {[%emt 00:05:34]} Bg5 {[%clk 00:37:27]} {[%emt
00:05:19]} 21. Re1 {[%clk 00:59:00]} {[%emt 00:10:01]} Bxc1 {[%clk 00:34:47]}
{[%emt 00:03:10]} 22. Raxc1 {[%clk 00:58:32]} {[%emt 00:00:58]} Rae8 {[%clk
00:27:20]} {[%emt 00:07:57]} 23. Qe3 {[%clk 00:52:52]} {[%emt 00:06:11]} c5
{[%clk 00:24:34]} {[%emt 00:03:16]} 24. a3 {[%clk 00:51:08]} {[%emt 00:02:13]}
e4 {[%clk 00:18:40]} {[%emt 00:06:25]} 25. dxe4 {[%clk 00:46:14]} {[%emt
00:05:24]} Rxe4 {[%clk 00:16:49]} {[%emt 00:02:21]} 26. Qd3 {[%clk 00:43:39]}
{[%emt 00:03:06]} Rfe8 {[%clk 00:10:02]} {[%emt 00:07:16]} 27. Rxe4 {[%clk
00:42:45]} {[%emt 00:01:23]} Rxe4 {[%clk 00:08:27]} {[%emt 00:02:05]} 28. Qd5
{[%clk 00:41:19]} {[%emt 00:01:57]} Qxd5 {[%clk 00:07:29]} {[%emt 00:01:28]} 29.
Bxd5 {[%clk 00:41:17]} {[%emt 00:00:32]} Re7 {[%clk 00:07:44]} {[%emt
00:00:15]} 30. Kf1 {[%clk 00:39:54]} {[%emt 00:01:52]} Kf6 {[%clk 00:05:07]}
{[%emt 00:03:06]} 31. Re1 {[%clk 00:39:27]} {[%emt 00:00:58]} Rxe1+ {[%clk
00:01:39]} {[%emt 00:03:59]} 32. Kxe1 {[%clk 00:39:48]} {[%emt 00:00:09]} Nd6
{[%clk 00:00:38]} {[%emt 00:01:30]} 33. bxc5 {[%clk 00:39:23]} {[%emt
00:00:56]} Nb5 {[%clk 00:00:59]} {[%emt 00:00:09]} 34. a4 {[%clk 00:35:16]}
{[%emt 00:04:37]} Nxc3 {[%clk 00:00:56]} {[%emt 00:00:32]} 35. Bc6 {[%clk
00:35:29]} {[%emt 00:00:17]} Na2 {[%clk 00:01:00]} {[%emt 00:00:26]} 36. Kd2
{[%clk 00:35:31]} {[%emt 00:00:28]} Nb4 {[%clk 00:01:16]} {[%emt 00:00:15]} 37.
Bd7 {[%clk 00:34:02]} {[%emt 00:02:00]} Na6 {[%clk 00:01:02]} {[%emt 00:00:43]}
38. c6 {[%clk 00:31:59]} {[%emt 00:02:34]} Ke5 {[%clk 00:01:14]} {[%emt
00:00:17]} 39. Kd3 {[%clk 00:28:57]} {[%emt 00:03:32]} Nc7 {[%clk 00:00:55]}
{[%emt 00:00:48]} 40. Kc4 {[%clk 00:27:23]} {[%emt 00:02:05]} Nd5 {[%clk
00:00:43]} {[%emt 00:00:42]} 41. Kc5 {[%clk 00:26:23]} {[%emt 00:01:30]} Nc7
{[%clk 00:00:45]} {[%emt 00:00:28]} 42. a5 {[%clk 00:24:53]} {[%emt 00:02:01]}
Na6+ {[%clk 00:00:58]} {[%emt 00:00:17]} 43. Kc4 {[%clk 00:23:07]} {[%emt
00:02:16]} Nc7 {[%clk 00:00:49]} {[%emt 00:00:38]} 44. Bc8 {[%clk 00:22:18]}
{[%emt 00:01:19]} Ke4 {[%clk 00:00:44]} {[%emt 00:00:34]} 45. Kc5 {[%clk
00:20:47]} {[%emt 00:02:02]} Ke5 {[%clk 00:00:54]} {[%emt 00:00:20]} 46. a6
{[%clk 00:18:00]} {[%emt 00:03:17]} Ne6+ {[%clk 00:00:39]} {[%emt 00:00:46]} 47.
Bxe6 {[%clk 00:11:16]} {[%emt 00:08:37]} Kxe6 {[%clk 00:02:54]} {[%emt
00:00:02]} 48. h3 {[%clk 00:10:26]} {[%emt 00:01:20]} h5 {[%clk 00:02:24]}
{[%emt 00:01:01]} 49. h4 {[%clk 00:10:07]} {[%emt 00:00:49]} f4 {[%clk
00:02:38]} {[%emt 00:00:16]} 50. g3 {[%clk 00:10:19]} {[%emt 00:00:18]} f3
{[%clk 00:02:53]} {[%emt 00:00:15]} 51. Kd4 {[%clk 00:09:27]} {[%emt 00:01:22]}
Kd6 {[%clk 00:03:16]} {[%emt 00:00:07]} 52. Ke4 {[%clk 00:09:45]} {[%emt
00:00:12]} Kxc6 {[%clk 00:03:38]} {[%emt 00:00:08]} 53. Kf5 {[%clk 00:10:07]}
{[%emt 00:00:08]} Kd5 {[%clk 00:03:03]} {[%emt 00:01:05]} 54. Kg5 {[%clk
00:10:22]} {[%emt 00:00:15]} Ke5 {[%clk 00:03:24]} {[%emt 00:00:09]} 55. Kxh5
{[%clk 00:10:42]} {[%emt 00:00:09]} Kf5 {[%clk 00:03:44]} {[%emt 00:00:11]} 56.
Kh6 {[%clk 00:10:53]} {[%emt 00:00:19]} Kf6 {[%clk 00:04:08]} {[%emt 00:00:07]}
57. h5 {[%clk 00:10:57]} {[%emt 00:00:25]} Kf7 {[%clk 00:03:39]} {[%emt
00:01:00]} 58. Kg5 {[%clk 00:11:17]} {[%emt 00:00:10]} 1-0

[Event "Ebbe Cup 48"]
[Site "Goteborgs Schackcentrum, Vegatan 20, Gothenburg, Sweden"]
[Date "2025.02.15"]
[Round "2.11"]
[White "Pettersson, Lennart"]
[Black "Munuswamy, Shivakumar"]
[Result "0-1"]
[TimeControl "90 minutes + 30 seconds per move from move one"]
[WhiteFideId "1791419"]
[BlackFideId "1788914"]
[WhiteElo "1691"]
[BlackElo "1586"]

1. e4 {[%clk 01:30:44]} {[%emt 00:00:14]} d6 {[%clk 01:27:04]} {[%emt
00:03:57]} 2. b3 {[%clk 01:30:34]} {[%emt 00:00:38]} Nf6 {[%clk 01:27:18]}
{[%emt 00:00:18]} 3. Nc3 {[%clk 01:30:40]} {[%emt 00:00:23]} c6 {[%clk
01:27:14]} {[%emt 00:00:35]} 4. h3 {[%clk 01:30:41]} {[%emt 00:00:27]} Nbd7
{[%clk 01:27:04]} {[%emt 00:00:41]} 5. Nf3 {[%clk 01:28:41]} {[%emt 00:02:30]}
e5 {[%clk 01:27:05]} {[%emt 00:00:29]} 6. Bd3 {[%clk 01:28:32]} {[%emt
00:00:38]} b5 {[%clk 01:26:09]} {[%emt 00:01:28]} 7. O-O {[%clk 01:28:14]}
{[%emt 00:00:47]} b4 {[%clk 01:25:53]} {[%emt 00:00:46]} 8. Na4 {[%clk
01:28:03]} {[%emt 00:00:42]} d5 {[%clk 01:24:14]} {[%emt 00:02:09]} 9. exd5
{[%clk 01:27:44]} {[%emt 00:00:47]} cxd5 {[%clk 01:24:11]} {[%emt 00:00:34]} 10.
Be2 {[%clk 01:26:04]} {[%emt 00:02:10]} Bd6 {[%clk 01:18:55]} {[%emt 00:05:46]}
11. d4 {[%clk 01:24:21]} {[%emt 00:02:11]} e4 {[%clk 01:18:12]} {[%emt
00:01:16]} 12. Nh2 {[%clk 01:18:22]} {[%emt 00:06:29]} Qc7 {[%clk 01:17:07]}
{[%emt 00:01:35]} 13. Ng4 {[%clk 01:15:05]} {[%emt 00:03:45]} Nxg4 {[%clk
01:15:32]} {[%emt 00:02:06]} 14. Bxg4 {[%clk 01:15:10]} {[%emt 00:00:24]} Nf6
{[%clk 01:15:23]} {[%emt 00:00:40]} 15. Bxc8 {[%emt 00:01:10]} Rxc8 {[%emt
00:00:50]} 16. Be3 {[%clk 01:09:47]} {[%emt 00:03:53]} O-O {[%clk 01:14:58]}
{[%emt 00:00:55]} 17. Nc5 {[%clk 01:10:04]} {[%emt 00:00:14]} Bxc5 {[%clk
01:06:44]} {[%emt 00:08:44]} 18. dxc5 {[%clk 01:03:25]} {[%emt 00:00:27]} Rfd8
{[%clk 01:07:13]} 19. Bd4 {[%clk 01:03:34]} {[%emt 00:07:04]} Qf4 {[%clk
01:05:05]} {[%emt 00:02:39]} 20. Qc1 {[%clk 00:57:28]} {[%emt 00:06:31]} Qxc1
{[%clk 01:00:50]} {[%emt 00:04:49]} 21. Rfxc1 {[%clk 00:56:41]} {[%emt
00:01:17]} Rc6 {[%clk 01:01:07]} {[%emt 00:00:14]} 22. a3 {[%clk 00:56:53]}
{[%emt 00:00:16]} a5 {[%clk 01:00:46]} {[%emt 00:00:52]} 23. axb4 {[%clk
00:56:46]} {[%emt 00:00:35]} axb4 {[%clk 01:01:04]} {[%emt 00:00:15]} 24. Ra7
{[%clk 00:56:18]} {[%emt 00:00:58]} Rb8 {[%clk 01:00:20]} {[%emt 00:01:14]} 25.
Rca1 {[%clk 00:56:10]} {[%emt 00:00:38]} Rcc8 {[%clk 00:56:48]} {[%emt
00:04:02]} 26. Be5 {[%clk 00:54:56]} {[%emt 00:01:42]} Rb5 {[%clk 00:54:56]}
{[%emt 00:02:24]} 27. Ra8 {[%clk 00:54:52]} {[%emt 00:00:33]} Rbxc5 {[%clk
00:54:34]} {[%emt 00:00:52]} 28. Bd6 {[%clk 00:47:42]} {[%emt 00:07:40]} Rxc2
{[%clk 00:53:53]} {[%emt 00:01:11]} 29. Bxb4 {[%clk 00:47:48]} {[%emt
00:00:22]} h6 {[%clk 00:53:38]} {[%emt 00:00:47]} 30. Rxc8+ {[%clk 00:45:40]}
{[%emt 00:02:38]} Rxc8 {[%clk 00:53:49]} {[%emt 00:00:19]} 31. Bd6 {[%clk
00:45:17]} {[%emt 00:00:53]} d4 {[%clk 00:52:39]} {[%emt 00:01:41]} 32. b4
{[%clk 00:44:53]} {[%emt 00:00:20]} Nd5 {[%clk 00:51:29]} {[%emt 00:02:14]} 33.
Re1 {[%clk 00:40:11]} {[%emt 00:04:59]} f5 {[%clk 00:51:37]} {[%emt 00:00:34]}
34. g4 {[%clk 00:39:26]} {[%emt 00:01:14]} g6 {[%clk 00:51:37]} {[%emt
00:00:32]} 35. Bc5 {[%clk 00:38:56]} {[%emt 00:00:57]} d3 {[%clk 00:51:41]}
{[%emt 00:00:28]} 36. f3 {[%clk 00:37:36]} {[%emt 00:01:50]} e3 {[%clk
00:48:58]} {[%emt 00:03:14]} 37. Bxe3 {[%clk 00:37:42]} {[%emt 00:00:21]} Nxe3
{[%clk 00:48:37]} {[%emt 00:00:53]} 38. Rxe3 {[%clk 00:37:48]} {[%emt
00:00:21]} d2 {[%clk 00:48:42]} {[%emt 00:00:29]} 39. Rd3 {[%clk 00:37:18]}
{[%emt 00:00:32]} Rc1+ {[%clk 00:49:11]} 40. Kf2 {[%clk 00:36:08]} d1=Q {[%clk
00:49:11]} 0-1

[Event "Ebbe Cup 48"]
[Site "Goteborgs Schackcentrum, Vegatan 20, Gothenburg, Sweden"]
[Date "2025.02.15"]
[Round "3.1"]
[White "Christoforidis, Nicolas"]
[Black "Karlsson, Stefan"]
[Result "1-0"]
[TimeControl "90 minutes + 30 seconds per move from move one"]
[WhiteFideId "1789180"]
[BlackFideId "1771183"]
[WhiteElo "1886"]
[BlackElo "2050"]

1. d4 {[%clk 01:27:47]} {[%emt 00:03:13]} Nf6 {[%clk 01:30:22]} {[%emt
00:00:38]} 2. Bf4 {[%clk 01:27:32]} {[%emt 00:00:44]} g6 {[%clk 01:30:18]}
{[%emt 00:00:35]} 3. e3 {[%clk 01:26:36]} {[%emt 00:01:26]} Bg7 {[%clk
01:29:59]} {[%emt 00:00:49]} 4. Nc3 {[%clk 01:24:10]} {[%emt 00:02:56]} d5
{[%clk 01:28:43]} {[%emt 00:01:45]} 5. h3 {[%clk 01:21:46]} {[%emt 00:02:55]}
O-O {[%clk 01:27:17]} {[%emt 00:01:56]} 6. Nf3 {[%clk 01:15:07]} {[%emt
00:07:09]} c5 {[%clk 01:17:36]} {[%emt 00:10:11]} 7. Be2 {[%clk 01:12:56]}
{[%emt 00:02:41]} Nc6 {[%clk 01:16:00]} {[%emt 00:02:06]} 8. O-O {[%clk
01:11:27]} {[%emt 00:01:58]} Re8 {[%clk 01:08:05]} {[%emt 00:08:25]} 9. Nb5
{[%clk 01:03:22]} {[%emt 00:08:35]} Nh5 {[%clk 00:56:08]} {[%emt 00:12:27]} 10.
Bh2 {[%clk 00:56:48]} {[%emt 00:07:05]} Rf8 {[%clk 00:55:22]} {[%emt 00:01:15]}
11. c3 {[%clk 00:49:57]} {[%emt 00:07:22]} Nf6 {[%clk 00:44:59]} {[%emt
00:10:52]} 12. dxc5 {[%clk 00:48:53]} {[%emt 00:01:34]} Ne8 {[%clk 00:41:34]}
{[%emt 00:03:55]} 13. Nbd4 {[%clk 00:46:37]} {[%emt 00:02:46]} f6 {[%clk
00:40:14]} {[%emt 00:01:50]} 14. Nxc6 {[%clk 00:40:12]} {[%emt 00:06:56]} bxc6
{[%clk 00:40:36]} {[%emt 00:00:09]} 15. Nd4 {[%clk 00:38:25]} {[%emt 00:02:16]}
Qd7 {[%clk 00:39:19]} {[%emt 00:01:45]} 16. Qc2 {[%clk 00:34:49]} {[%emt
00:04:07]} e5 {[%clk 00:39:07]} {[%emt 00:00:42]} 17. Nb3 {[%clk 00:33:57]}
{[%emt 00:01:23]} Qf7 {[%clk 00:36:32]} {[%emt 00:03:04]} 18. Na5 {[%clk
00:33:06]} {[%emt 00:01:22]} Qc7 {[%clk 00:35:51]} {[%emt 00:01:08]} 19. b4
{[%clk 00:33:01]} {[%emt 00:00:37]} f5 {[%clk 00:35:54]} {[%emt 00:00:27]} 20.
Rad1 {[%clk 00:30:32]} {[%emt 00:02:59]} Nf6 {[%clk 00:35:55]} {[%emt
00:00:30]} 21. c4 {[%clk 00:27:15]} {[%emt 00:03:47]} Be6 {[%clk 00:35:24]}
{[%emt 00:01:01]} 22. Nb3 {[%clk 00:25:50]} {[%emt 00:01:55]} Rab8 {[%clk
00:35:17]} {[%emt 00:00:37]} 23. Nd4 {[%clk 00:24:46]} {[%emt 00:01:34]} Bd7
{[%clk 00:34:33]} {[%emt 00:01:14]} 24. a3 {[%clk 00:19:48]} {[%emt 00:05:28]}
Rfe8 {[%clk 00:34:09]} {[%emt 00:00:53]} 25. cxd5 {[%clk 00:18:37]} {[%emt
00:01:42]} Nxd5 {[%clk 00:31:58]} {[%emt 00:02:41]} 26. Bc4 {[%clk 00:17:55]}
{[%emt 00:01:12]} Rbc8 {[%clk 00:31:16]} {[%emt 00:01:12]} 27. e4 {[%clk
00:17:03]} {[%emt 00:01:22]} fxe4 {[%clk 00:31:15]} {[%emt 00:00:31]} 28. Qxe4
{[%clk 00:17:20]} {[%emt 00:00:13]} Qb7 {[%clk 00:31:21]} {[%emt 00:00:23]} 29.
Nf3 {[%clk 00:16:13]} {[%emt 00:01:37]} Be6 {[%clk 00:31:02]} {[%emt 00:00:49]}
30. Ng5 {[%clk 00:14:34]} {[%emt 00:02:09]} Rcd8 {[%clk 00:31:02]} {[%emt
00:00:31]} 31. Nxe6 {[%clk 00:13:59]} {[%emt 00:01:05]} Rxe6 {[%clk 00:31:31]}
32. b5 {[%clk 00:12:48]} {[%emt 00:01:41]} Qe7 {[%clk 00:30:22]} {[%emt
00:01:39]} 33. bxc6 {[%clk 00:11:03]} {[%emt 00:02:16]} Nc7 {[%clk 00:30:45]}
{[%emt 00:00:08]} 34. Rxd8+ {[%clk 00:10:15]} {[%emt 00:01:17]} Qxd8 {[%clk
00:31:14]} 35. Bxe6+ {[%clk 00:09:24]} {[%emt 00:01:21]} Nxe6 {[%clk 00:31:43]}
36. Bxe5 {[%clk 00:08:58]} {[%emt 00:00:55]} Bf8 {[%clk 00:31:46]} {[%emt
00:00:27]} 37. Bd6 {[%clk 00:07:58]} {[%emt 00:01:31]} Qc8 {[%clk 00:32:13]}
{[%emt 00:00:03]} 38. Qd5 {[%clk 00:06:44]} {[%emt 00:01:44]} Bh6 {[%clk
00:32:22]} {[%emt 00:00:21]} 39. Re1 {[%clk 00:06:34]} {[%emt 00:00:40]} Kf7
{[%clk 00:32:48]} {[%emt 00:00:03]} 40. c7 {[%clk 00:06:44]} {[%emt 00:00:21]}
Qd7 {[%clk 00:32:55]} {[%emt 00:00:23]} 41. Qxe6+ {[%clk 00:05:33]} {[%emt
00:01:41]} Qxe6 {[%clk 00:33:16]} {[%emt 00:00:09]} 42. Rxe6 {[%clk 00:05:57]}
{[%emt 00:00:06]} Kxe6 {[%clk 00:33:42]} {[%emt 00:00:04]} 43. c8=Q+ {[%clk
00:06:19]} {[%emt 00:00:08]} Kd5 {[%clk 00:34:05]} {[%emt 00:00:06]} 44. Qg8+
{[%clk 00:06:29]} {[%emt 00:00:20]} 1-0